fUSD/lending_fUSD_20240613
["ID","MTS","AMOUNT","RATE_DAILY","PERIOD"]
[329362084,1718282473652,398.75,0.00011242,2]
[329362085,1718282488281,151.338811,0.00024798,120]
[329362086,1718282495217,151.0,0.00024,120]
[329362087,1718282515561,7049.21,0.00012962,2]
[329362088,1718282597592,1364.1706901,0.00012962,2]
[329362089,1718282611519,605.22759629,0.00012962,2]
[329362090,1718282638298,198.35,0.0001292,2]
[329362091,1718282673532,250.0,0.00012957,2]
[329362092,1718282688545,134.29171361,0.00012907,2]
[329362093,1718282688588,4913.66147186,0.00012907,2]
[329362094,1718282749334,2553.55168877,9.718e-05,2]
[329362095,1718282784309,2532.78683937,0.00012907,2]
[329362096,1718282784350,388.04833972,0.00012907,2]
[329362097,1718282805458,171.88,0.00012985,2]
[329362098,1718282846843,507.0777849,0.00013,2]
[329362099,1718282883946,181.48,0.00010353,2]
[329362100,1718282886570,193.24307856,0.00013,2]
[329362101,1718282892623,155.0,0.00013,2]
[329362102,1718282894632,8403.27079682,0.00013,2]
[329362103,1718282894663,2140.18287485,0.00013,2]
[329362104,1718282902282,2000.0,0.00013,2]
[329362105,1718282941540,300.0,0.00013,2]
[329362106,1718282954150,-155.0,0.00013001,2]
[329362107,1718282954192,-22346.60723112,0.00013001,2]
[329362108,1718282969420,1625.93576349,0.00013,2]
[329362109,1718282972956,250.0,0.00012993,2]
[329362112,1718283003274,378.81,0.00011255,2]
[329362119,1718283033719,-150.0,0.00013001,2]
[329362120,1718283033734,-150.0,0.00013001,2]
[329362121,1718283033745,-150.0,0.00013001,2]
[329362122,1718283033769,-686.95,0.00013007,2]
[329362123,1718283033781,-1000.0,0.00013018,2]
[329362124,1718283033794,-164.41,0.00013333,2]
[329362125,1718283033807,-378.81,0.00013519,2]
[329362126,1718283033825,-3058.14,0.00013555,2]
[329362127,1718283033853,-7152.98,0.00013555,2]
[329362128,1718283033871,-499.99,0.00013555,2]
[329362129,1718283033891,-4226.6,0.00013555,2]
[329362130,1718283033917,-163.8,0.00013699,2]
[329362131,1718283033953,-611.8,0.00013699,2]
[329362132,1718283033971,-157.65,0.00013699,2]
[329362133,1718283033989,-200.0,0.00013699,2]
[329362134,1718283034011,-2751.0,0.00013699,2]
[329362135,1718283034024,-688.81,0.00013699,2]
[329362136,1718283034044,-174.6,0.00013699,2]
[329362137,1718283034061,-569.32,0.00013771,2]
[329362138,1718283034088,-383.19273597,0.00013847,2]
[329362139,1718283034126,-1489.91682,0.0001386,2]
[329362140,1718283034141,-303.96,0.0001388,2]
[329362141,1718283034152,-1000.0,0.00013899,2]
[329362142,1718283034167,-1067.12056371,0.00013899,2]
[329362143,1718283034178,-5962.0514,0.000139,2]
[329362144,1718283034189,-5133.203,0.000139,2]
[329362145,1718283034199,-5878.61932141,0.000139,2]
[329362146,1718283034211,-179.39771079,0.000139,2]
[329362147,1718283034222,-176.66786046,0.000139,2]
[329362148,1718283034234,-330.85478835,0.000139,2]
[329362149,1718283034246,-343.04939925,0.000139,2]
[329362150,1718283034268,-348.95748955,0.00013942,2]
[329362151,1718283034293,-217.971423,0.00013973,2]
[329362152,1718283034311,-3975.4523,0.00013973,2]
[329362153,1718283034322,-1785.20231721,0.00013985,2]
[329362154,1718283034335,-365.46,0.00013988,3]
[329362155,1718283034358,-165.17737501,0.0001399,2]
[329362156,1718283034395,-152.42,0.0001399,2]
[329362157,1718283034406,-152.42,0.0001399,2]
[329362158,1718283034441,-2559.96948321,0.00013996,2]
[329362159,1718283034460,-155.0,0.00013996,2]
[329362160,1718283034474,-155.60039783,0.00013996,2]
[329362161,1718283034489,-204.99679615,0.00013996,2]
[329362162,1718283034507,-335.72685915,0.00013996,2]
[329362163,1718283034518,-544.65639327,0.00013996,2]
[329362164,1718283034531,-435.98926893,0.00013996,2]
[329362165,1718283034566,-179.47934785,0.00013996,2]
[329362166,1718283034585,-204.03400987,0.00013996,2]
[329362167,1718283034608,-155.30777116,0.00013996,2]
[329362168,1718283034618,-2138.57685314,0.00013996,2]
[329362169,1718283034640,-507.4877379,0.00013996,2]
[329362170,1718283034653,-193.13213728,0.00013996,2]
[329362171,1718283034665,-162.78459659,0.00013996,2]
[329362172,1718283034692,-155.25360211,0.00013996,2]
[329362173,1718283034704,-1710.79122942,0.00013996,2]
[329362174,1718283034739,-15918.48169607,0.00013996,2]
[329362175,1718283034750,-255.91381025,0.00013997,2]
[329362176,1718283034762,-4479.24610841,0.00013997,2]
[329362177,1718283034774,-3019.41253036,0.00013998,2]
[329362178,1718283034789,-242.67952649,0.00013998,2]
[329362180,1718283034816,-1607.21613717,0.00013998,2]
[329362181,1718283034828,-65261.33217749,0.00013998,2]
[329362183,1718283034846,-7300.692,0.00013998,2]
[329362185,1718283034869,-205.8241592,0.00013998,2]
[329362187,1718283034883,-155.87200056,0.00013998,2]
[329362189,1718283034899,-645.50901128,0.00013999,2]
[329362192,1718283034912,-150.01,0.00013999,2]
[329362194,1718283034930,-5899.25247034,0.00013999,2]
[329362196,1718283034952,-217736.41509819,0.00014,2]
[329362204,1718283035139,-1884.1263,0.00014,2]
[329362215,1718283040145,-3474.23589957,0.00013999,2]
[329362216,1718283040182,-13615.22302043,0.00014,2]
[329362217,1718283040210,-345.0,0.00014,2]
[329362218,1718283040726,-445.4892,0.00014,2]
[329362219,1718283040764,-203243.48614198,0.00014,2]
[329362428,1718283044749,-1737.11794979,0.00013999,2]
[329362430,1718283044761,-3580.38049938,0.00014,2]
[329362432,1718283044784,-1048568.54342236,0.00014,2]
[329362434,1718283044796,-1692.0202568,0.00014,2]
[329362437,1718283044824,-3341.75385964,0.00014,2]
[329362439,1718283044848,-96825.15219876,0.00014,2]
[329362450,1718283045032,-2026.61885355,0.00014,2]
[329362504,1718283048086,-28497.40354806,0.00014,2]
[329362505,1718283051048,-868.55897489,0.00013999,2]
[329362507,1718283051060,-38243.76196975,0.00014,2]
[329362509,1718283051081,-15855.0362,0.00014,2]
[329362511,1718283051095,-160.71299081,0.00014,2]
[329362513,1718283051140,-210.0,0.00014301,2]
[329362515,1718283051161,-1000.0,0.00014645,2]
[329362519,1718283051173,-217.971423,0.00014795,2]
[329362520,1718283051185,-43947.0,0.00014795,2]
[329362521,1718283051198,-7764.0,0.00014795,2]
[329362522,1718283051229,-179.39771078,0.000149,2]
[329362523,1718283051251,-6799.90124868,0.000149,2]
[329362524,1718283051272,-418.4208277,0.000149,2]
[329362525,1718283051287,-173.69961228,0.000149,2]
[329362526,1718283051304,-152.42,0.0001499,2]
[329362527,1718283051316,-152.42,0.0001499,2]
[329362528,1718283051329,-152.42,0.0001499,2]
[329362529,1718283051346,-152.42,0.0001499,2]
[329362530,1718283051359,-410198.76973585,0.00015,2]
[329362531,1718283051403,-620.85616807,0.00015,2]
[329362532,1718283051416,-48068.63985318,0.00015,2]
[329362533,1718283051482,-7459.87972639,0.00015,2]
[329362534,1718283051933,-79937.29555196,0.00015,2]
[329362535,1718283051952,-515.21057112,0.00015,2]
[329362539,1718283052400,-3007.43990326,0.00015,2]
[329362540,1718283052419,-35200.0000001,0.00015,2]
[329362541,1718283052603,-351.80688056,0.00015,2]
[329362552,1718283190279,3305.07136166,0.00012901,2]
[329362553,1718283190329,2397.98953834,0.00012901,2]
[329362560,1718283781691,947.22674464,0.00012901,2]
[329362561,1718283963757,399.74,0.0001185,2]
[329362562,1718284148313,-591.22792833,0.00013436,2]
[329362578,1718284233143,-522.84728183,0.00013435,2]
[329362579,1718284233164,-368.391672,0.00013506,2]
[329362580,1718284233178,-197.35,0.00013574,2]
[329362581,1718284233188,-250.0,0.00013604,2]
[329362582,1718284233208,-194.12,0.00013699,2]
[329362583,1718284233219,-600.0,0.00013721,2]
[329362584,1718284233232,-250.0,0.00013772,2]
[329362585,1718284233270,-922.09,0.00013774,2]
[329362586,1718284233298,-164.41,0.00013817,2]
[329362587,1718284233311,-150.0,0.0001382,2]
[329362588,1718284233352,-499.99,0.0001382,2]
[329362589,1718284233363,-300.0,0.0001382,2]
[329362590,1718284233382,-4802.06957253,0.00013821,2]
[329362591,1718284233396,-266.95294903,0.00013821,2]
[329362592,1718284233481,-3411.32426494,0.00013821,2]
[329362598,1718284239282,-719.89895861,0.00013821,2]
[329362599,1718284239691,-5898.27425489,0.00013821,2]
[329362600,1718284239702,-939.22,0.0001387,2]
[329362601,1718284239745,-499.99,0.0001387,2]
[329362602,1718284239761,-7913.8596,0.00013898,2]
[329362603,1718284239785,-500.0,0.00013916,2]
[329362604,1718284239825,-11472.35,0.00013916,2]
[329362605,1718284239881,-174.377139,0.00013973,2]
[329362606,1718284239938,-173.2641146,0.00014113,2]
[329362607,1718284239978,-399.74,0.00014114,2]
[329362608,1718284240010,-400.0,0.00014129,2]
[329362609,1718284240030,-174.377139,0.00014795,2]
[329362610,1718284240054,-500.0,0.00014879,2]
[329362611,1718284240106,-200.0,0.00014879,2]
[329362612,1718284240123,-500.0,0.0001488,2]
[329362613,1718284240135,-500.0,0.0001488,2]
[329362614,1718284240162,-200.0,0.0001488,2]
[329362615,1718284240214,-1620.659468,0.000149,2]
[329362616,1718284240225,-5802.45684548,0.000149,2]
[329362617,1718284240266,-306.55961707,0.000149,2]
[329362618,1718284240278,-330.85478834,0.000149,2]
[329362619,1718284240289,-203.94857317,0.0001499,2]
[329362620,1718284240304,-152.36,0.0001499,2]
[329362622,1718284240322,-152.36,0.0001499,2]
[329362623,1718284240340,-539.64542846,0.00014997,2]
[329362625,1718284240353,-155.0,0.00014997,2]
[329362626,1718284240397,-155.0,0.00014997,2]
[329362627,1718284240453,-367.51936553,0.00014997,2]
[329362628,1718284240467,-155.41095972,0.00014997,2]
[329362629,1718284240480,-199.63992,0.00014997,2]
[329362630,1718284240494,-11254.734,0.00014998,2]
[329362631,1718284240576,-3121.10383112,0.00014999,2]
[329362632,1718284240588,-25503.3571843,0.00014999,2]
[329362638,1718284245500,-393.9,0.00014998,2]
[329362645,1718284245571,-16.15684906,0.00014998,2]
[329362647,1718284245583,-3201.32587362,0.00014999,2]
[329362649,1718284245930,-12049.53630709,0.00014999,2]
[329362652,1718284245947,-642.05264264,0.00014999,2]
[329362654,1718284245962,-4799.4,0.00014999,2]
[329362656,1718284245981,-3026.89668144,0.00014999,2]
[329362657,1718284245998,-180.47638987,0.00014999,2]
[329362659,1718284246009,-393.69329569,0.00014999,2]
[329362661,1718284246024,-40.58619176,0.00014999,2]
[329362663,1718284246036,-668.0,0.00015,2]
[329362665,1718284246048,-3348.73835426,0.00015,2]
[329362668,1718284246077,-505490.96755109,0.00015,2]
[329362670,1718284246093,-3410.0,0.00015,2]
[329362677,1718284246286,-119417.86933441,0.00015,2]
[329362681,1718284246311,-7163.23471616,0.00015,2]
[329362693,1718284246616,-1414.36815207,0.00015,2]
[329362696,1718284246634,-679.73,0.00015,2]
[329362727,1718284247084,-2001.76069057,0.00015,2]
[329362729,1718284247112,-366.21446838,0.00015,2]
[329362731,1718284247141,-4784.56359418,0.00015,2]
[329362765,1718284247743,-349.08509983,0.00015,2]
[329362767,1718284247760,-2354.21007583,0.00015,2]
[329362777,1718284248014,-409.7123056,0.00015,2]
[329362779,1718284248031,-65093.34784984,0.00015,2]
[329362790,1718284248341,-41774.72438296,0.00015,2]
[329362791,1718284248399,-1011.24483292,0.00015,2]
[329362792,1718284248440,-907.5,0.00015,2]
[329362794,1718284248489,-67339.19935778,0.00015,2]
[329362795,1718284248524,-142359.12829856,0.00015,2]
[329362796,1718284249285,-181.27433181,0.000149,2]
[329362797,1718284249298,-217.13974372,0.00014999,2]
[329362798,1718284249352,-13962.06372719,0.00015,2]
[329362799,1718284249376,-661.1649,0.00015,2]
[329362805,1718284249728,-3378.11808078,0.00015,2]
[329362807,1718284250190,-11222.29366448,0.00015,2]
[329362847,1718284446830,2634.69790111,0.000274,60]
[329362848,1718284470165,6161.2,0.000275,120]
[329362849,1718284575021,411.98,0.00011833,2]
[329362854,1718285119993,226.08362702,0.00011833,2]
[329362859,1718285280313,410.89401693,0.00011833,2]
[329362860,1718285287987,5206.08607307,0.00011833,2]
[329362861,1718285288023,10000.0,0.00011833,2]
[329362862,1718285288053,6603.26754003,0.00011833,2]
[329362863,1718285296749,3396.73245997,0.00011833,2]
[329362864,1718285296802,10000.0,0.00011833,2]
[329362865,1718285296867,6882.18949648,0.00011833,2]
[329362866,1718285304325,410.78028749,0.00011833,2]
[329362869,1718285311762,958.2785447,0.00011241,2]
[329362870,1718285315990,1414.673433,0.00012959,2]
[329362871,1718285316771,334.07823833,0.00011833,2]
[329362872,1718285316812,4543.74451588,0.00011833,2]
[329362873,1718285325785,343.32076839,0.00011241,2]
[329362876,1718285359509,290.01383422,0.00011833,2]
[329362877,1718285359969,4486.70333416,0.00011833,2]
[329362879,1718285362048,336.21754735,8.875e-05,2]
[329362880,1718285362076,2120.53604745,8.875e-05,2]
[329362881,1718285363430,299.86157995,0.00011833,2]
[329362882,1718285363946,1362.61061232,0.00011833,2]
[329362883,1718285369145,200.34147241,0.00011833,2]
[329362884,1718285370164,200.15212938,0.00012894,2]
[329362885,1718285371791,155.0,0.00011833,2]
[329362886,1718285377439,290.01383422,0.00011833,2]
[329362887,1718285380521,331.26261334,0.00012922,2]
[329362888,1718285381337,299.86157995,0.00011833,2]
[329362893,1718285389663,227.1865463,0.00011833,2]
[329362894,1718285392801,977.947979,0.00012955,2]
[329362895,1718285393539,290.10337853,0.00011833,2]
[329362896,1718285397354,228.87806863,0.00011833,2]
[329362897,1718285408095,3016.24415852,0.00011833,2]
[329362898,1718285408125,1745.73307052,0.00011833,2]
[329362902,1718285426117,2543.83703292,0.00011833,2]
[329362903,1718285426865,584.313,0.00012925,2]
[329362904,1718285432919,1213.98640664,0.00012918,2]
[329362911,1718285433696,-5610.0688,0.00013017,2]
[329362912,1718285433721,-2815.15882012,0.00013017,2]
[329362913,1718285433739,-373.22702367,0.00013018,2]
[329362914,1718285433773,-117.63413153,0.00013018,2]
[329362915,1718285433800,-1796.85627837,0.00013018,2]
[329362916,1718285433834,-845.54485859,0.00013018,2]
[329362917,1718285433851,-1524.63530021,0.00013018,2]
[329362918,1718285433863,-217.45523203,0.00013019,2]
[329362919,1718285433879,-338.72471674,0.00013019,2]
[329362920,1718285433897,-345.88827384,0.0001302,2]
[329362921,1718285433908,-150.0,0.00013021,2]
[329362922,1718285433922,-150.0,0.00013021,2]
[329362923,1718285433933,-316.25422447,0.00013219,2]
[329362930,1718285435972,-25.25577553,0.00013219,2]
[329362934,1718285436008,-1117.61,0.0001324,2]
[329362936,1718285436028,-881.25,0.00013244,2]
[329362938,1718285436042,-200.0,0.0001327,2]
[329362940,1718285436054,-250.0,0.0001327,2]
[329362942,1718285436074,-179.34,0.0001327,2]
[329362944,1718285436086,-346.54422447,0.00013274,2]
[329362946,1718285436112,-2816.99074986,0.00013274,2]
[329362947,1718285436142,-299.66504719,0.00013274,2]
[329362948,1718285436162,-382.31827835,0.00013274,2]
[329362949,1718285436188,-3943.51369521,0.00013274,2]
[329362950,1718285436362,-833.36001832,0.00013274,2]
[329362951,1718285436384,-537.12016184,0.00013274,2]
[329362952,1718285436424,-7020.59782476,0.00013274,2]
[329362953,1718285436445,-170.60217524,0.00013288,2]
[329362954,1718285436466,-79.39782476,0.00013288,2]
[329362955,1718285436485,-229.40959924,0.00013288,2]
[329362956,1718285436497,-269.0000005,0.00013288,2]
[329362957,1718285436518,-2248.69040026,0.00013288,2]
[329362958,1718285436530,-224.99,0.00013288,2]
[329362959,1718285436542,-150.0,0.00013342,2]
[329362960,1718285436555,-447.17917977,0.00013346,2]
[329362961,1718285436572,-6.31736757,0.00013346,2]
[329362962,1718285436584,-609.192304,0.00013366,2]
[329362963,1718285437165,-300.0,0.00013366,2]
[329362964,1718285437204,-3125.00006,0.00013366,2]
[329362976,1718285439673,-5570.13750126,0.00013366,2]
[329362977,1718285439698,-292.14130397,0.00013366,2]
[329362978,1718285440185,-643.9335449,0.00013366,2]
[329362979,1718285440200,-480.0,0.00013399,2]
[329362980,1718285440225,-4042.41,0.00013405,2]
[329362981,1718285440250,-1899.93,0.0001344,2]
[329362982,1718285440274,-464.36,0.00013458,2]
[329362983,1718285440304,-1875.01,0.00013489,2]
[329362984,1718285440351,-424.40050855,0.00013496,2]
[329362985,1718285440367,-155.0,0.00013498,2]
[329362986,1718285440413,-176.96,0.0001356,2]
[329362987,1718285440434,-461.04,0.00013699,2]
[329362988,1718285440449,-15590.23,0.00013699,2]
[329362989,1718285440474,-173.02,0.00013699,2]
[329362990,1718285440504,-2969.29475949,0.00013741,2]
[329362991,1718285440542,-499.99,0.00013751,2]
[329362992,1718285440565,-520.0,0.00014051,2]
[329362993,1718285440579,-167.55,0.00014065,2]
[329362994,1718285440592,-411.98,0.00014097,2]
[329362995,1718285440624,-210.0,0.00014323,2]
[329362996,1718285440641,-626.52827106,0.00014398,2]
[329362997,1718285440662,-172.32,0.00014712,2]
[329362998,1718285440678,-253.45455834,0.00014848,2]
[329362999,1718285440708,-1449.37109,0.0001485,2]
[329363000,1718285440727,-500.0,0.00014879,2]
[329363001,1718285440742,-500.0,0.0001488,2]
[329363002,1718285440772,-268.23966491,0.000149,2]
[329363003,1718285440784,-7498.66283118,0.000149,2]
[329363004,1718285440798,-462.14262372,0.000149,2]
[329363005,1718285440821,-4616.24077475,0.00014982,2]
[329363006,1718285440860,-152.37,0.0001499,2]
[329363007,1718285440878,-500.72756155,0.00014995,2]
[329363008,1718285440894,-1639.38226919,0.00014995,2]
[329363009,1718285440905,-2195.01899183,0.00014995,2]
[329363010,1718285440922,-482.08388994,0.00014995,2]
[329363011,1718285440934,-4445.7432569,0.00014995,2]
[329363012,1718285440946,-719.5469304,0.00014995,2]
[329363013,1718285440963,-3019.72982412,0.00014995,2]
[329363014,1718285440998,-364.20577069,0.00014995,2]
[329363015,1718285441032,-1337.99277293,0.00014995,2]
[329363016,1718285441073,-525.50363988,0.00014995,2]
[329363017,1718285441101,-429.8525504,0.00014995,2]
[329363018,1718285441124,-3066.55001275,0.00014995,2]
[329363019,1718285441186,-531.15011943,0.00014996,2]
[329363020,1718285441256,-817.1199595,0.00014997,2]
[329363021,1718285441276,-22534.6767781,0.00014997,2]
[329363022,1718285441310,-193.18760792,0.00014998,2]
[329363024,1718285441347,-166.69758772,0.00014998,2]
[329363026,1718285441368,-537.90748487,0.00014998,2]
[329363027,1718285441392,-238.25486485,0.00014998,2]
[329363029,1718285441413,-209.56877311,0.00014998,2]
[329363030,1718285441465,-316.92510636,0.00014998,2]
[329363031,1718285441492,-155.0,0.00014998,2]
[329363032,1718285441519,-1490.47614766,0.00014998,2]
[329363033,1718285441541,-155.0,0.00014998,2]
[329363034,1718285441572,-4292.57166119,0.00014998,2]
[329363035,1718285441584,-864.72790662,0.00014998,2]
[329363036,1718285441605,-155.0,0.00014998,2]
[329363037,1718285441616,-217.13974372,0.00014999,2]
[329363038,1718285441629,-600.0,0.00015,2]
[329363039,1718285441665,-61902.52580145,0.00015,2]
[329363040,1718285441713,-62753.46377156,0.00015,2]
[329363041,1718285441744,-7568.0625,0.00015,2]
[329363042,1718285442035,-6926.33107012,0.00015,2]
[329363043,1718285442049,-5455.43200001,0.00015,2]
[329363044,1718285442064,-886.6124525,0.00015,2]
[329363065,1718285444256,-203.94857317,0.0001499,2]
[329363066,1718285444276,-41007.98192997,0.00015,2]
[329363067,1718285444325,-5165.02820554,0.00015,2]
[329363068,1718285444345,-542.76931822,0.00015,2]
[329363069,1718285444401,-664.35000011,0.00015,2]
[329363070,1718285444679,-22820.80713084,0.00015,2]
[329363076,1718285445198,-1809.73224284,0.00015,2]
[329363078,1718285445244,-2246.54344987,0.00015,2]
[329363081,1718285445317,-3801.2619139,0.00015,2]
[329363083,1718285445349,-1491.95735246,0.00015,2]
[329363084,1718285445372,-500.0,0.00015,2]
[329363100,1718285445806,-1811.50223245,0.00015,2]
[329363101,1718285445829,-2987.3033904,0.00015,2]
[329363102,1718285445859,-3003.59339988,0.00015,2]
[329363103,1718285445879,-177999.12935581,0.00015,2]
[329363104,1718285445957,-0.00118719,0.00015,2]
[329363105,1718285446366,-7212.34653627,0.00015,2]
[329363106,1718285446382,-65093.34784984,0.00015,2]
[329363114,1718285447555,-294.66201057,0.00014999,2]
[329363116,1718285447567,-242.57563541,0.00014999,2]
[329363121,1718285447582,-26.16436459,0.00014999,2]
[329363124,1718285447600,-658.23916931,0.00015,2]
[329363160,1718285448027,-338.2011883,0.00014999,2]
[329363161,1718285448039,-13874.7988117,0.00015,2]
[329363162,1718285448052,-72285.10926254,0.00015,2]
[329363164,1718285448408,-136462.7142123,0.00015,2]
[329363165,1718285448432,-380.1,0.00015,2]
[329363166,1718285448451,-3424.21,0.00015,2]
[329363185,1718285449155,-1682.95546604,0.00014999,2]
[329363188,1718285449184,-5584.00085148,0.00015,2]
[329363190,1718285449199,-547.84176427,0.00015,2]
[329363194,1718285449240,-623.2102661,0.00015,2]
[329363201,1718285449703,-34773.48897222,0.00015,2]
[329363202,1718285449725,-42935.87170144,0.00015,2]
[329363203,1718285449754,-11664.0,0.00015,2]
[329363204,1718285450200,-8429.660456,0.00015,2]
[329363205,1718285450214,-6000.7487761,0.00015,2]
[329363206,1718285450227,-353.1023952,0.00015,2]
[329363207,1718285450256,-538.23397954,0.00015,2]
[329363218,1718285592765,433.39,0.0001213,2]
[329363219,1718285647149,2694.2449,0.00012919,2]
[329363220,1718285662283,158.08609856,0.00012973,2]
[329363221,1718285854733,201.08,0.00012388,2]
[329363222,1718285904880,250.0,0.00012386,2]
[329363223,1718285941423,175.32949136,0.00012964,2]
[329363224,1718285941461,128.1918156,0.00012964,2]
[329363225,1718285947296,303.52130694,0.00012988,2]
[329363226,1718285997637,7112.0,0.00012968,2]
[329363227,1718286052281,410.89401693,0.00012968,2]
[329363228,1718286056703,309.03370447,0.00012968,2]
[329363229,1718286070298,236.9154189,0.00012968,2]
[329363230,1718286117521,171.88,0.00012485,2]
[329363231,1718286167335,433.89,0.00010491,2]
[329363232,1718286167727,433.89,0.00012755,2]
[329363234,1718286198856,459.78373716,0.00012409,2]
[329363235,1718286198906,257.96626284,0.00012409,2]
[329363236,1718286205404,8010.67,0.00012388,2]
[329363237,1718286251084,162.75810585,0.00012954,2]
[329363238,1718286257216,162.75810583,0.00012982,2]
[329363239,1718286281949,568.6,0.00012387,2]
[329363240,1718286387673,837.24752548,0.00012358,2]
[329363241,1718286387704,162.75247452,0.00012358,2]
[329363245,1718286446831,1111.08,0.00012384,2]
[329363246,1718286511389,1074.29,0.00012398,2]
[329363247,1718286533098,4600.06,0.00012516,2]
[329363252,1718286557111,158.08609855,0.00012944,2]
[329363253,1718286561969,162.75810583,0.00012943,2]
[329363269,1718286633578,-2123.99997,0.00013039,2]
[329363270,1718286633592,-561.51132701,0.00013039,2]
[329363271,1718286634388,-340.35593273,0.00013039,2]
[329363272,1718286634417,-76.44129175,0.00013039,2]
[329363273,1718286634428,-2370.1801588,0.0001304,2]
[329363274,1718286634441,-729.0,0.00013042,2]
[329363275,1718286634458,-150.0,0.00013068,2]
[329363276,1718286634476,-638.9,0.00013088,2]
[329363277,1718286634489,-638.9,0.00013091,2]
[329363278,1718286634499,-150.0,0.00013094,2]
[329363279,1718286634528,-638.9,0.00013095,2]
[329363280,1718286634538,-565.52608309,0.00013098,2]
[329363281,1718286634771,-73.37391691,0.00013098,2]
[329363282,1718286634786,-300.0,0.00013101,2]
[329363283,1718286634800,-638.9,0.00013102,2]
[329363284,1718286634811,-499.99,0.00013102,2]
[329363285,1718286634822,-466.49,0.00013102,2]
[329363286,1718286634833,-638.9,0.00013105,2]
[329363287,1718286634843,-638.9,0.00013109,2]
[329363288,1718286634855,-638.9,0.00013112,2]
[329363289,1718286634874,-638.9,0.00013116,2]
[329363290,1718286634891,-638.9,0.00013119,2]
[329363291,1718286634905,-638.9,0.00013122,2]
[329363292,1718286634928,-638.9,0.00013126,2]
[329363293,1718286634940,-638.9,0.00013129,2]
[329363294,1718286634951,-638.9,0.00013133,2]
[329363295,1718286634962,-638.9,0.00013136,2]
[329363296,1718286635000,-638.9,0.0001314,2]
[329363297,1718286635021,-638.9,0.00013143,2]
[329363298,1718286635032,-638.9,0.00013147,2]
[329363299,1718286635045,-638.9,0.0001315,2]
[329363300,1718286635055,-638.9,0.00013154,2]
[329363301,1718286635066,-453.64477673,0.00013348,2]
[329363302,1718286635081,-174.42,0.00013679,2]
[329363303,1718286635092,-200.0,0.00013699,2]
[329363304,1718286635103,-1250.13,0.00013699,2]
[329363305,1718286635118,-159.88,0.00013699,2]
[329363306,1718286635136,-172.48,0.00013709,2]
[329363307,1718286635149,-262.41,0.0001389,3]
[329363308,1718286635168,-752.55976757,0.000139,2]
[329363309,1718286635181,-1000.0,0.00013903,2]
[329363310,1718286635195,-954.60139076,0.0001399,2]
[329363311,1718286635206,-173.74,0.0001399,3]
[329363312,1718286635218,-521.24,0.0001399,3]
[329363313,1718286635233,-152.57,0.0001399,2]
[329363314,1718286635245,-169.27129522,0.00013993,2]
[329363315,1718286635267,-182.04870981,0.00013993,2]
[329363316,1718286635284,-301.74690484,0.00013993,2]
[329363317,1718286635295,-170.26012975,0.00013993,2]
[329363318,1718286635309,-155.0,0.00013999,2]
[329363319,1718286635328,-10672.60534741,0.00013999,2]
[329363320,1718286635344,-655.60712406,0.00013999,2]
[329363321,1718286637205,-1286.32241983,0.00013999,2]
[329363322,1718286637227,-1865.69249295,0.00013999,2]
[329363323,1718286637241,-670.28116184,0.00013999,2]
[329363324,1718286637259,-1114.24720997,0.00013999,2]
[329363325,1718286637272,-3995.54532308,0.00013999,2]
[329363326,1718286637308,-2086.30615198,0.00013999,2]
[329363327,1718286637346,-8155.98341101,0.00014,2]
[329363328,1718286637369,-1676.55969541,0.00014,2]
[329363329,1718286637387,-300305.7027585,0.00014,2]
[329363330,1718286637706,-606.15,0.00014,2]
[329363331,1718286637748,-522.55327531,0.00014,2]
[329363332,1718286637769,-872.67905712,0.00014,2]
[329363333,1718286637801,-37345.84880496,0.00014,2]